bitfinex/quotes_ETHUSD_20260305
["timestamp","ask_amount","ask_price","bid_price","bid_amount"]
[1772739667257,5.88490934,2077.9,2077.3,2.76646821]
[1772739667625,1.20307988,2078.0,2077.3,9.06595212]
[1772739668032,7.08775768,2078.4,2077.4,6.29948391]
[1772739668232,5.88490934,2078.4,2077.4,6.29948391]
[1772739668466,1.20479506,2078.5,2077.4,6.29948391]
[1772739668755,1.20479187,2078.5,2077.4,6.29948391]
[1772739668982,0.002,2078.5,2077.4,6.29948391]
[1772739669128,1.20472359,2078.7,2078.0,6.29948391]
[1772739669327,7.08963293,2078.7,2078.1,1.564]
[1772739669648,5.88690934,2078.7,2078.1,1.564]
[1772739669950,0.002,2078.7,2078.1,1.564]
[1772739670250,0.002,2078.7,2078.1,7.86348391]
[1772739670627,1.20243293,2079.2,2078.2,6.29948391]
[1772739670822,7.08727318,2079.3,2078.2,6.29948391]
[1772739671221,7.08727318,2079.3,2078.3,7.50239013]
[1772739672357,7.08727318,2079.3,2078.4,1.565]
[1772739672858,7.08727318,2079.3,2078.4,7.86448391]
[1772739673261,7.08727318,2079.3,2078.5,1.20279047]
[1772739674255,7.08727318,2079.3,2078.3,1.20287772]
[1772739674438,7.08727318,2079.3,2078.4,1.566]
[1772739675737,7.08727318,2079.3,2078.4,2.76881475]
[1772739676159,7.08727318,2079.3,2078.3,7.50233898]
[1772739676435,7.08727318,2079.3,2078.4,1.566]
[1772739676641,7.08727318,2079.3,2078.4,7.86548391]
[1772739677363,5.88690934,2079.1,2078.4,1.566]
[1772739677864,1.2025012,2079.0,2078.5,1.20279047]
[1772739678062,0.002,2079.1,2078.5,7.50227438]
[1772739678362,1.20445333,2079.1,2078.5,7.50227438]
[1772739679661,7.08936267,2079.1,2078.6,1.566]
[1772739680252,0.002,2079.1,2078.6,9.06817887]
[1772739680459,1.20220052,2079.6,2078.7,6.29948391]
[1772739681746,7.08710986,2079.6,2078.7,6.29948391]
[1772739681978,7.08710986,2079.6,2078.8,1.20261689]
[1772739683674,7.08710986,2079.6,2078.8,7.5021008]
[1772739684001,7.08710986,2079.6,2078.9,2.76954103]
[1772739685049,7.08710986,2079.6,2078.9,9.06902494]
[1772739686380,4.80861704,2079.7,2079.0,6.29948391]
[1772739687850,5.88490934,2079.6,2078.9,6.29948391]
[1772739688056,5.88490934,2079.6,2079.0,1.567]
[1772739688454,1.20221207,2079.5,2079.0,2.76946044]
[1772739688669,1.20219477,2079.6,2079.0,9.08466821]
[1772739689486,7.54484959,2079.6,2078.7,1.567]
[1772739691784,7.54484959,2079.6,2078.7,2.76966971]
[1772739691969,0.002,2079.5,2078.7,2.76966971]
[1772739692174,5.9989625,2079.4,2078.7,1.567]
[1772739692679,1.2023277,2079.3,2078.7,1.567]
[1772739693181,7.2012902,2079.3,2078.7,1.567]
[1772739693677,7.2012902,2079.3,2078.7,2.76964756]
[1772739693887,5.9989625,2079.3,2078.7,2.76964756]
[1772739694669,7.20134803,2079.2,2078.7,1.567]
[1772739694984,7.20134803,2079.2,2078.6,0.001]
[1772739695487,1.20238553,2079.2,2078.6,8.80782581]
[1772739696187,7.20127855,2079.4,2078.7,6.03610422]
[1772739696511,1.20231605,2079.4,2078.7,6.03610422]
[1772739697113,10.81004204,2079.5,2078.8,1.20261689]
[1772739698179,10.81004204,2079.5,2078.8,7.23872111]
[1772739699187,2.87600913,2079.4,2078.8,7.23872111]
[1772739699882,7.20317457,2079.5,2078.8,7.23872111]
[1772739700284,1.20422119,2079.5,2078.8,7.23872111]
[1772739700776,7.20318369,2079.5,2078.8,7.23872111]
[1772739701101,7.20318369,2079.5,2078.9,1.568]
[1772739701413,7.20318369,2079.5,2078.9,2.77055437]
[1772739701619,7.20318369,2079.5,2078.9,8.80665859]
[1772739701908,1.20422119,2079.5,2079.0,6.03610422]
[1772739703595,6.0009625,2079.5,2079.0,1.568]
[1772739705097,2.87795852,2079.4,2078.8,6.03610422]
[1772739705584,1.2023277,2079.3,2078.8,6.03610422]
[1772739705775,7.2012902,2079.3,2078.9,0.001]
[1772739706793,1.2023277,2079.3,2078.9,0.001]
[1772739707685,4.80931082,2079.4,2078.9,0.001]
[1772739707884,2.87887982,2079.3,2078.9,0.001]
[1772739708896,5.9989625,2079.2,2078.9,0.001]
[1772739709395,5.9989625,2079.0,2078.6,1.57]
[1772739709770,1.20255904,2078.9,2078.6,1.57]
[1772739709970,1.20255904,2078.9,2078.6,0.001]
[1772739710271,1.20255904,2078.9,2078.4,0.001]
[1772739710272,7.20152154,2078.9,2078.5,1.569]
[1772739713397,7.2012902,2079.3,2078.6,6.03610422]
[1772739713609,2.8777835,2079.2,2078.6,6.03610422]
[1772739713812,4.0801704,2079.2,2078.6,6.03610422]
[1772739713983,1.20226988,2079.4,2078.6,7.23879131]
[1772739714586,7.20320231,2079.5,2078.6,7.23879131]
[1772739715790,0.002,2079.5,2078.6,7.23879131]
[1772739715989,6.0009625,2079.5,2078.6,7.23879131]
[1772739716986,0.002,2079.5,2078.6,7.23879131]
[1772739717502,6.0009625,2079.5,2078.7,1.57]
[1772739717690,6.0009625,2079.5,2078.8,6.03610422]
[1772739718277,1.20226988,2079.4,2078.9,1.57]
[1772739718502,7.20123238,2079.4,2078.8,7.60610422]
[1772739719601,7.20123238,2079.4,2079.0,0.001]
[1772739719789,6.0009625,2079.3,2079.0,0.001]
[1772739720188,7.24278089,2079.2,2078.8,0.001]
[1772739720384,7.24278089,2079.2,2078.5,0.001]
[1772739720584,6.04039536,2079.0,2078.5,0.001]
[1772739722793,1.20255904,2078.9,2078.5,0.001]
[1772739722983,7.2429544,2078.9,2078.3,1.57]
[1772739723201,7.2429544,2078.9,2078.0,6.48888601]
[1772739723202,7.2429544,2078.9,2078.0,7.69195821]
[1772739723398,6.04039536,2078.7,2078.0,6.48888601]
[1772739723598,6.04039536,2078.5,2077.7,6.48888601]
[1772739723797,6.04039536,2078.3,2077.4,0.001]
[1772739724016,6.04039536,2078.1,2077.4,1.20442486]
[1772739724210,6.04039536,2078.7,2077.4,7.69331087]
[1772739724411,8.91582592,2078.6,2077.6,6.48888601]
[1772739724612,6.04039536,2078.4,2077.6,6.48888601]
[1772739724782,7.2430701,2078.7,2077.8,6.48888601]
[1772739725106,1.20266256,2078.8,2077.8,6.48888601]
[1772739725411,7.24299041,2078.9,2077.8,6.48888601]
[1772739725594,2.87428841,2078.8,2077.8,6.48888601]
[1772739725791,7.24299041,2078.9,2077.8,6.48888601]
[1772739726415,10.84996207,2079.2,2077.8,6.88149644]
[1772739726622,2.87344373,2079.1,2077.8,6.88149644]
[1772739726821,6.04039536,2079.0,2077.8,6.48888601]
[1772739727118,7.2429544,2078.9,2078.0,6.48888601]
[1772739728133,1.20255904,2078.9,2078.0,6.48888601]
[1772739728420,7.24280117,2079.2,2078.0,6.48888601]
[1772739728831,1.20240581,2079.2,2078.0,6.48888601]
[1772739728996,0.002,2079.3,2078.2,6.48888601]
[1772739729501,6.04239536,2079.3,2078.3,8.05888601]
[1772739730412,6.04239536,2079.3,2078.4,8.05888601]
[1772739731114,1.20238553,2079.2,2078.5,7.69167648]
[1772739731612,7.24472365,2079.3,2078.5,7.69167648]
[1772739731782,1.20436748,2079.3,2078.5,7.69167648]
[1772739732190,7.24476284,2079.3,2078.5,7.69167648]
[1772739733714,1.20434849,2079.3,2078.5,7.69167648]
[1772739734285,1.20434849,2079.3,2078.7,6.48888601]
[1772739734519,0.002,2079.1,2078.7,6.48888601]
[1772739734720,0.002,2079.3,2078.8,6.48888601]
[1772739734916,1.20433198,2079.3,2078.8,6.48888601]
[1772739735399,0.002,2079.3,2078.8,6.48888601]
[1772739735598,0.002,2079.3,2078.7,1.20261833]
[1772739735794,0.002,2079.3,2078.7,7.69150434]
[1772739737184,0.002,2079.3,2078.8,1.57]
[1772739737391,0.002,2079.3,2078.9,1.20255904]
[1772739737622,0.002,2079.3,2078.8,9.26145747]
[1772739737823,0.002,2079.3,2078.9,6.48888601]
[1772739739418,0.002,2079.3,2079.0,1.2025012]
[1772739739791,0.002,2079.3,2078.9,7.69139831]
[1772739739994,0.002,2079.3,2078.9,6.48888601]
[1772739740204,0.002,2079.3,2078.9,7.6914446]
[1772739740402,0.002,2079.3,2078.9,6.48888601]
[1772739740609,0.002,2079.3,2078.8,1.57]
[1772739741093,0.002,2079.3,2078.8,2.77260529]
[1772739741424,1.2043277,2079.3,2078.7,6.48888601]
[1772739741622,7.24472306,2079.3,2078.8,1.571]
[1772739742128,7.24472306,2079.3,2078.7,7.69155964]
[1772739742332,7.24472306,2079.3,2078.8,1.571]
[1772739743031,6.04239536,2079.3,2078.8,1.571]
[1772739743220,0.002,2079.3,2078.8,8.05988601]
[1772739743610,0.002,2079.3,2078.8,9.26245457]
[1772739743807,0.002,2079.3,2078.9,6.48888601]
[1772739745742,0.002,2079.3,2079.0,1.2025012]
[1772739746102,0.002,2079.3,2079.0,1.572]
[1772739747621,0.002,2079.3,2079.0,8.06088601]
[1772739747812,0.002,2079.3,2079.0,9.26333026]
[1772739748730,0.002,2079.5,2079.1,6.24051244]
[1772739748914,0.002,2079.6,2079.2,6.24051244]
[1772739749841,0.002,2079.6,2079.3,1.2023277]
[1772739750012,0.002,2079.6,2079.4,1.573]
[1772739750215,5.88593341,2079.6,2078.9,1.20351169]
[1772739750530,5.88593341,2079.6,2079.3,1.574]
[1772739751339,0.002,2079.6,2079.3,1.574]
[1772739751803,0.002,2079.6,2079.3,9.20568385]
[1772739752516,0.002,2079.6,2079.4,6.42938438]
[1772739752920,5.88393341,2080.2,2079.4,6.42938438]
[1772739752921,7.08576669,2080.2,2079.4,6.42938438]
[1772739753230,7.08576216,2080.2,2079.4,6.42938438]
[1772739754137,7.08576216,2080.2,2079.5,7.63159645]
[1772739754523,1.20179348,2080.3,2079.5,7.63159645]
[1772739754835,7.08572689,2080.3,2079.5,7.63159645]
[1772739756405,1.20179348,2080.3,2079.5,7.63159645]
[1772739756810,7.08572689,2080.3,2079.5,7.63159645]
[1772739757639,7.08572689,2080.3,2079.5,6.42938438]
[1772739758654,7.08572689,2080.3,2079.5,7.63159111]
[1772739759011,7.08572689,2080.3,2079.5,6.42938438]
[1772739759243,7.08572689,2080.3,2079.3,2.77629578]
[1772739759542,7.08572689,2080.3,2079.3,9.20568016]
[1772739760038,7.08572689,2080.3,2079.3,9.20570858]
[1772739760242,7.08572689,2080.3,2079.4,6.42938438]
[1772739760433,7.08572689,2080.3,2079.4,7.63162649]
[1772739761219,7.08572689,2080.3,2079.5,0.001]
[1772739761413,5.88393341,2080.0,2079.5,0.001]
[1772739762659,5.88393341,2079.7,2079.3,0.001]
[1772739764750,7.08608767,2079.6,2079.3,0.001]
[1772739765333,1.20213144,2079.7,2079.3,0.001]
[1772739766242,7.08606485,2079.7,2079.3,0.001]
[1772739767617,7.08606485,2079.7,2079.0,0.001]
[1772739768424,7.08606485,2079.7,2079.0,6.43038438]
[1772739768651,7.08606485,2079.7,2079.1,7.63182774]
[1772739769025,5.88393341,2079.7,2079.1,7.63182774]
[1772739769225,7.08605146,2079.7,2079.1,7.63182774]
[1772739770649,5.88393341,2079.7,2079.1,7.63182774]
[1772739770949,1.20206004,2079.8,2079.1,7.63182774]
[1772739771260,7.08784466,2080.1,2079.3,6.42938438]
[1772739772564,0.002,2080.1,2079.3,6.42938438]
[1772739772739,0.002,2080.1,2079.5,6.42938438]
[1772739772939,1.20168031,2080.5,2079.5,6.42938438]
[1772739773129,1.20146097,2080.8,2079.5,6.42938438]
[1772739773326,2.87207718,2080.7,2079.5,6.42938438]
[1772739773657,1.20146097,2080.8,2079.5,6.42938438]
[1772739773830,7.08539438,2080.8,2079.5,6.42938438]
[1772739774027,7.08539438,2080.8,2079.7,6.42938438]
[1772739775265,7.08539438,2080.8,2079.9,6.42938438]
[1772739776349,7.08539438,2080.8,2079.8,1.578]
[1772739776548,7.08539438,2080.8,2079.8,8.00738438]
[1772739776752,5.88593341,2080.6,2079.8,8.00738438]
[1772739777457,5.88593341,2080.6,2079.9,7.63136524]
[1772739777458,1.20163422,2080.5,2079.9,7.63136524]
[1772739779136,1.20163422,2080.5,2079.8,1.578]
[1772739779355,7.08556763,2080.5,2079.9,1.20198086]
[1772739779661,7.08556763,2080.5,2079.8,2.77999573]
[1772739780230,7.08556763,2080.5,2079.8,2.78003761]
[1772739780528,7.08556763,2080.5,2079.8,1.578]
[1772739780730,7.08556763,2080.5,2079.8,2.78003269]
[1772739782484,7.08556763,2080.5,2079.8,9.07763822]
[1772739782836,7.08556763,2080.5,2079.8,7.87560553]
[1772739783083,7.08556763,2080.5,2079.8,9.07761994]
[1772739783660,0.002,2080.6,2079.9,6.29760553]
[1772739783863,8.24058088,2081.3,2079.9,6.29760553]
[1772739783864,8.64999082,2081.3,2079.9,6.29760553]
[1772739784065,8.64999082,2081.3,2080.1,6.29760553]
[1772739784066,7.55269384,2081.3,2080.1,6.29760553]
[1772739784435,7.55269384,2081.3,2080.2,7.49941304]
[1772739784765,7.55269384,2081.3,2080.3,1.578]
[1772739785061,6.35151271,2081.1,2080.1,6.29760553]
[1772739785243,6.35151271,2080.9,2080.0,2.77991523]
[1772739785448,6.35151271,2080.9,2080.0,1.578]
[1772739785850,6.35151271,2080.9,2080.0,2.77991808]
[1772739786243,6.35151271,2080.9,2080.0,1.578]
[1772739786443,6.35151271,2080.9,2079.5,0.001]
[1772739786444,6.35151271,2080.7,2079.6,6.29760553]
[1772739786642,6.35151271,2080.7,2079.6,7.49972127]
[1772739788548,6.35151271,2080.7,2079.6,1.20213483]
[1772739788549,6.35151271,2080.5,2079.6,1.20213483]
[1772739789252,6.35151271,2080.5,2079.5,9.07877064]
[1772739789474,6.35151271,2080.5,2079.5,9.07880626]
[1772739789663,6.35151271,2080.5,2079.5,1.579]
[1772739789859,6.35151271,2080.3,2079.5,1.579]
[1772739790054,6.35151271,2080.3,2079.5,2.78120127]
[1772739790255,6.35151271,2080.3,2079.8,0.001]
[1772739790559,7.55329826,2080.3,2079.8,0.001]
[1772739790758,1.20372177,2080.4,2079.8,6.29860553]
[1772739790956,7.55523448,2080.4,2079.8,0.001]
[1772739792374,7.55523448,2080.4,2079.5,1.579]
[1772739792563,7.55523448,2080.4,2079.5,2.78120179]
[1772739793601,7.55523448,2080.4,2079.5,1.579]
[1772739793964,6.35151271,2080.2,2079.5,1.579]
[1772739794684,6.35151271,2080.2,2079.5,2.78120753]
[1772739795081,1.20186529,2080.1,2079.5,2.78120753]
[1772739795253,7.553378,2080.1,2079.5,1.579]
[1772739795587,7.553378,2080.1,2079.5,2.78121206]
[1772739796381,7.553378,2080.1,2079.5,0.001]
[1772739796754,7.553378,2080.1,2079.5,7.50080861]
[1772739798289,6.35151271,2080.1,2079.5,7.50080861]
[1772739798476,1.20186834,2080.1,2079.5,9.07980861]
[1772739798785,1.20182916,2080.2,2079.5,9.07980861]
[1772739798989,7.55329712,2080.3,2079.6,6.29760553]
[1772739799155,1.20178441,2080.3,2079.6,6.29760553]
[1772739799682,1.203699,2080.4,2079.8,6.29760553]
[1772739801072,0.002,2080.4,2079.8,6.29760553]
[1772739801595,0.002,2080.4,2080.0,6.29760553]
[1772739801763,7.55302057,2080.8,2080.2,6.29760553]
[1772739802166,4.80518682,2081.1,2080.2,6.29760553]
[1772739802167,7.55289765,2081.0,2080.2,6.29760553]
[1772739802486,1.20127389,2081.2,2080.2,6.29760553]
[1772739802859,7.5527866,2081.2,2080.2,6.29760553]
[1772739803580,7.5527866,2081.2,2080.4,6.29760553]
[1772739803960,7.5527866,2081.2,2080.2,7.49940617]
[1772739804255,7.5527866,2081.2,2080.2,6.29760553]
[1772739804256,6.35151271,2081.0,2080.2,6.29760553]
[1772739804577,6.35151271,2080.8,2079.9,9.07856669]
[1772739804982,0.002,2080.2,2080.0,6.29760553]
[1772739805787,0.002,2080.2,2080.1,1.20186529]
[1772739806368,0.002,2080.2,2080.0,11.10528353]
[1772739806369,0.002,2080.2,2080.0,7.49948497]
[1772739806683,0.002,2080.2,2080.0,6.29760553]
[1772739807181,0.002,2080.2,2079.8,7.49963968]
[1772739808960,0.002,2080.2,2079.8,6.29760553]
[1772739809391,5.96644925,2080.2,2079.7,0.001]
[1772739809895,0.002,2080.2,2079.7,1.20309194]
[1772739810092,0.002,2080.2,2079.7,7.53320094]
[1772739810604,0.002,2080.4,2079.8,6.26626036]
[1772739812290,6.22744799,2080.4,2079.7,0.001]
[1772739812789,6.22744799,2080.4,2079.7,1.20309113]
[1772739812991,6.22744799,2080.4,2079.7,7.46935149]
[1772739813490,6.22744799,2080.4,2079.7,0.001]
[1772739813789,6.22744799,2080.4,2079.7,1.20309458]
[1772739813991,6.22744799,2080.4,2079.7,0.001]
[1772739814566,7.42719773,2080.3,2079.7,0.001]
[1772739815568,1.20174974,2080.3,2079.8,6.26626036]
[1772739816097,1.20373223,2080.4,2079.8,6.26626036]
[1772739816494,0.002,2080.4,2079.8,6.26626036]
[1772739816694,9.10061953,2080.4,2079.7,0.001]
[1772739816888,6.22544799,2080.3,2079.7,1.20309333]
[1772739817087,6.22544799,2080.3,2079.7,0.001]
[1772739817296,6.22544799,2080.3,2079.7,1.20309127]
[1772739817481,6.22544799,2080.3,2079.7,7.46935163]
[1772739817679,6.22544799,2080.3,2079.7,7.46935227]
[1772739818000,6.22544799,2080.3,2079.7,7.4693509]
[1772739818392,6.22544799,2080.3,2079.7,6.26726036]
[1772739818586,1.20180751,2080.2,2079.7,6.26726036]
[1772739819300,1.20180751,2080.2,2079.7,0.001]
[1772739819513,7.4272555,2080.2,2079.7,0.001]
[1772739819685,0.002,2080.1,2079.7,0.001]
[1772739819888,0.002,2080.1,2079.6,1.58]
[1772739820083,6.22544799,2080.0,2079.3,0.001]
[1772739820298,6.22544799,2079.8,2079.3,0.001]
[1772739820698,1.20209645,2079.7,2079.3,0.001]
[1772739821537,7.42754444,2079.7,2079.0,0.001]
[1772739821813,6.22544799,2079.5,2078.6,0.001]
[1772739821971,6.22544799,2079.5,2078.6,7.4699831]
[1772739822605,6.22544799,2079.5,2078.7,7.84826036]
[1772739822825,6.22544799,2079.3,2078.6,0.001]
[1772739823187,6.22544799,2079.3,2078.6,7.46998819]
[1772739823512,1.2021652,2079.6,2078.8,6.26626036]
[1772739824015,7.42761319,2079.6,2078.8,6.26626036]
[1772739824810,7.42761319,2079.6,2078.8,7.46886184]
[1772739825510,7.42761319,2079.6,2078.7,1.582]
[1772739826203,7.42761319,2079.6,2078.7,2.78465718]
[1772739827434,7.42761319,2079.6,2078.7,9.05091284]
[1772739827599,7.42761319,2079.6,2078.7,6.26626036]
[1772739829015,7.42761319,2079.6,2078.7,7.46890419]
[1772739829313,7.42761319,2079.6,2078.7,6.26626036]
[1772739829512,7.42761319,2079.6,2078.6,1.583]
[1772739830018,7.42761319,2079.6,2078.6,0.001]
[1772739830019,6.22544799,2079.4,2078.6,0.001]
[1772739830830,6.22544799,2079.4,2078.6,7.46997769]
[1772739831414,1.2023277,2079.3,2078.6,7.46997769]
[1772739831918,7.42774444,2079.4,2078.6,7.46997769]
[1772739833321,7.42774444,2079.4,2078.8,0.001]
[1772739835615,6.22544799,2079.6,2078.8,7.46987725]
[1772739837019,6.22544799,2079.6,2078.8,9.05287725]
[1772739837716,1.20221207,2079.5,2078.8,7.85026036]
[1772739838020,7.42766006,2079.5,2078.8,1.584]
[1772739840294,7.42766006,2079.5,2078.8,2.78661325]
[1772739840492,7.42766006,2079.5,2078.8,1.584]
[1772739842905,7.42766006,2079.5,2078.8,2.78661355]
[1772739843496,7.42766006,2079.5,2078.8,1.584]
[1772739843828,7.42766006,2079.5,2078.8,2.78660249]
[1772739844408,7.42766006,2079.5,2078.8,1.584]
[1772739846044,6.07508867,2079.3,2078.9,0.001]
[1772739846336,6.07508867,2079.3,2078.7,6.48756217]
[1772739846337,1.20238553,2079.2,2078.7,6.48756217]
[1772739846542,1.20235885,2079.3,2078.7,6.48756217]
[1772739846915,7.27744752,2079.3,2078.7,6.48756217]
[1772739847238,7.27744752,2079.3,2078.6,0.001]
[1772739847743,7.27744752,2079.3,2078.6,6.48856217]
[1772739848405,7.27744752,2079.3,2078.6,7.69129045]
[1772739850340,1.20244336,2079.1,2078.6,7.69129045]
[1772739850910,7.27753203,2079.1,2078.6,0.001]
[1772739851135,8.95622709,2079.0,2078.6,0.001]
[1772739851335,6.07508867,2079.0,2078.6,0.001]
[1772739851839,1.20244336,2079.1,2078.4,1.20380241]
[1772739851840,6.07508867,2078.8,2078.4,0.001]
[1772739852039,8.95763249,2078.7,2078.4,0.001]
[1772739852254,2.88254382,2078.6,2078.4,0.001]
[1772739852551,1.20279047,2078.5,2078.4,0.001]
[1772739853044,7.27779844,2078.7,2078.4,0.001]
[1772739854333,7.27779844,2078.7,2078.1,0.001]
[1772739854536,7.27793701,2078.4,2078.1,0.001]
[1772739857843,6.07508867,2078.2,2078.1,0.001]
[1772739858248,6.07508867,2078.2,2077.4,0.001]
[1772739858249,6.07508867,2078.1,2077.4,0.001]
[1772739858414,6.07508867,2077.9,2077.4,0.001]
[1772739858620,1.20319568,2077.8,2077.4,0.001]
[1772739858944,1.2029641,2078.2,2077.4,6.48856217]
[1772739859148,7.27805277,2078.2,2077.4,6.48856217]
[1772739859551,7.27805277,2078.2,2078.0,0.001]
[1772739860218,7.27805277,2078.2,2077.4,6.48856217]
[1772739860418,6.07508867,2078.1,2077.4,6.48856217]
[1772739860617,1.20307988,2078.0,2077.5,7.6909316]
[1772739862870,7.27805277,2078.2,2077.5,7.6909316]
[1772739864637,7.27805277,2078.2,2077.5,6.48756217]
[1772739864823,7.27805277,2078.2,2077.5,7.69092942]
[1772739865153,7.27805277,2078.2,2077.6,1.583]
[1772739865329,7.27805277,2078.2,2077.7,6.48756217]
[1772739865330,1.2029641,2078.2,2077.7,6.48756217]
[1772739866436,1.20290622,2078.3,2077.7,6.48756217]
[1772739866832,1.20279047,2078.5,2077.8,1.20319568]
[1772739867145,7.27787914,2078.5,2077.7,6.48756217]
[1772739867462,7.27787914,2078.5,2077.6,1.583]
[1772739868179,7.27787914,2078.5,2077.6,2.78630954]
[1772739868475,7.27787914,2078.5,2077.6,1.583]
[1772739868845,7.27787914,2078.5,2077.6,2.78629589]
[1772739869983,7.27787914,2078.5,2077.7,6.00705149]
[1772739871268,7.27787914,2078.5,2077.7,7.21027948]
[1772739872088,7.27787914,2078.5,2077.8,0.001]
[1772739872270,6.40867931,2078.3,2077.8,0.001]
[1772739873361,7.60964341,2078.2,2077.8,0.001]
[1772739875363,1.20493431,2078.3,2077.8,6.01301063]
[1772739876355,7.61161362,2078.3,2077.8,6.01301063]
[1772739876567,7.61161362,2078.3,2077.8,0.001]
[1772739881185,9.28601843,2078.2,2077.8,0.001]
[1772739881371,6.40667931,2078.2,2077.8,0.001]
[1772739882289,7.6097013,2078.1,2077.8,0.001]
[1772739882461,9.28703044,2078.0,2077.8,0.001]
[1772739882661,6.40667931,2078.0,2077.8,0.001]
[1772739883360,1.20302199,2078.1,2077.5,0.001]
[1772739883361,6.40667931,2077.8,2077.5,0.001]
[1772739883558,9.28858216,2077.7,2077.5,0.001]
[1772739883858,6.40667931,2077.7,2077.5,0.001]
[1772739884493,6.40667931,2077.5,2077.3,0.001]
[1772739884794,6.40667931,2077.3,2077.1,0.001]
[1772739884960,2.88205959,2077.2,2077.1,0.001]
[1772739885161,6.40667931,2077.3,2077.1,0.001]
[1772739886892,1.20354323,2077.2,2077.1,0.001]
[1772739887197,6.40667931,2077.5,2077.1,0.001]
[1772739887400,7.6099329,2077.7,2077.1,6.01301063]
[1772739887558,2.87542639,2077.6,2077.1,6.01301063]
[1772739887960,1.20325359,2077.7,2077.1,6.01301063]
[1772739889690,7.60987499,2077.9,2077.2,7.21555386]
[1772739889866,1.20302199,2078.1,2077.2,7.21555386]
[1772739892208,7.60967171,2078.2,2077.2,7.21555386]
[1772739892505,1.20495961,2078.3,2077.2,7.21555386]
[1772739893063,1.2049128,2078.3,2077.2,7.21555386]
[1772739893590,0.002,2078.3,2077.2,7.21555386]
[1772739893966,1.20479696,2078.5,2077.3,6.01201063]
[1772739894212,1.20479696,2078.5,2077.5,6.01201063]
[1772739895174,7.61147627,2078.5,2077.5,6.01201063]
[1772739896067,7.61147627,2078.5,2077.7,6.01201063]
[1772739896496,6.40667931,2078.3,2077.3,6.01201063]
[1772739896666,6.40667931,2078.3,2077.4,6.01201063]
[1772739897674,6.40667931,2078.1,2077.4,6.01201063]
[1772739897993,1.20307988,2078.0,2077.5,1.20336943]
[1772739898199,1.20307988,2078.0,2077.5,7.21538006]
[1772739898585,1.20307988,2078.0,2077.5,6.01201063]
[1772739899066,7.60975919,2078.0,2077.3,7.59601063]
[1772739899267,1.2029641,2078.2,2077.4,6.01201063]
[1772739899463,1.20495068,2078.3,2077.4,6.01201063]
[1772739900180,0.002,2078.3,2077.6,6.47673872]
[1772739900588,1.20481231,2078.5,2077.7,6.47673872]
[1772739901303,0.002,2078.5,2077.7,6.47673872]
[1772739901498,1.20481491,2078.5,2077.7,6.47673872]
[1772739902007,6.33320659,2078.4,2077.7,6.47673872]
[1772739902212,7.53611281,2078.3,2077.7,6.47673872]
[1772739902372,7.53611281,2078.3,2077.6,1.583]
[1772739902572,7.53611281,2078.3,2077.4,6.47673872]
[1772739902873,7.53611281,2078.3,2077.4,8.05973872]
[1772739904303,7.53611281,2078.3,2077.4,9.26316576]
[1772739904868,7.53611281,2078.3,2077.5,6.47673872]
[1772739905927,6.33320659,2078.1,2077.4,1.583]
[1772739906427,6.33320659,2077.9,2077.4,1.583]
[1772739907117,1.20307988,2078.0,2077.4,8.05973872]
[1772739907420,7.53628647,2078.0,2077.4,8.05973872]
[1772739909428,7.53628647,2078.0,2077.3,1.584]
[1772739909593,7.53628647,2078.0,2077.7,0.001]
[1772739909795,7.53628647,2078.0,2077.3,1.584]
[1772739910199,7.53628647,2078.0,2077.5,0.001]
[1772739910928,1.20307988,2078.0,2077.5,6.47773872]
[1772739911237,4.81385641,2078.3,2077.6,7.68000324]
[1772739911759,1.20490622,2078.3,2077.6,7.68000324]
[1772739912440,7.53811281,2078.3,2077.6,7.68004245]
[1772739913444,1.20490622,2078.3,2077.6,7.68004245]
[1772739914335,1.20490622,2078.3,2077.6,7.68003938]
[1772739914532,7.53811281,2078.3,2077.6,7.68004267]
[1772739914836,7.53811281,2078.3,2077.6,8.05973872]
[1772739915134,7.53811281,2078.3,2077.5,1.584]
[1772739915538,7.53622858,2078.1,2077.5,1.584]
[1772739916794,2.87551958,2078.0,2077.5,1.584]
[1772739916916,9.20872617,2078.0,2077.5,1.584]
[1772739917231,2.87755934,2077.9,2077.5,1.584]
[1772739917429,7.53640227,2077.8,2077.5,0.001]
[1772739918455,1.20319568,2077.8,2077.5,0.001]
[1772739919523,4.81278275,2077.9,2077.5,0.001]
[1772739919833,1.2029641,2078.2,2077.5,6.47773872]
[1772739920033,2.87807065,2078.1,2077.5,6.47773872]
[1772739921162,11.14684552,2078.3,2077.5,6.47773872]
[1772739921163,1.20495423,2078.3,2077.5,6.47773872]
[1772739921458,7.53816082,2078.3,2077.6,1.584]
[1772739921772,7.53816082,2078.3,2077.6,9.26404572]
[1772739922129,7.53816082,2078.3,2077.7,0.001]
[1772739922359,0.002,2077.9,2077.7,0.001]
[1772739922827,0.002,2077.9,2077.7,6.47773872]
[1772739924931,0.002,2077.9,2077.7,0.001]
[1772739925660,0.002,2078.1,2077.8,6.47673872]
[1772739928550,0.002,2078.1,2077.7,0.001]
[1772739928766,0.002,2078.1,2077.8,1.584]
[1772739930269,0.002,2078.1,2077.8,7.69572999]
[1772739930458,0.002,2078.3,2078.0,6.11172999]
[1772739930772,0.002,2078.3,2077.8,8.89888987]
[1772739933361,0.002,2078.3,2077.9,6.11172999]
[1772739934669,0.002,2078.3,2078.0,1.20307988]
[1772739934881,0.002,2078.3,2078.0,7.31480987]
[1772739935746,7.22756071,2078.7,2078.0,7.31480987]
[1772739936149,1.20463627,2078.8,2078.0,7.31480987]
[1772739936546,0.002,2078.1,2078.0,7.31480987]
[1772739936746,0.002,2078.1,2077.9,4.8124545]
[1772739936747,1.20463627,2078.8,2078.3,6.11172999]
[1772739936947,1.20463627,2078.8,2078.4,1.586]
[1772739937147,0.002,2078.6,2078.4,1.586]
[1772739939306,6.08505261,2079.3,2078.5,6.11172999]
[1772739939582,7.28740554,2079.3,2078.5,6.11172999]
[1772739940372,0.002,2079.3,2078.5,6.11172999]
[1772739940573,1.20433386,2079.3,2078.5,6.11172999]
[1772739940959,0.002,2079.3,2078.5,6.11172999]
[1772739941155,0.002,2079.3,2078.7,6.11172999]
[1772739941375,0.002,2079.3,2078.8,7.69872999]
[1772739941657,0.002,2079.3,2078.9,6.11172999]
[1772739942658,0.002,2079.3,2079.0,1.588]
[1772739943265,1.2043277,2079.3,2079.0,1.588]